[Event "FIDE World Rapid Chess Championship 2021"]
[White "Dreev, Aleksey"]
[Black "Harsha, Bharathakoti"]
[WhiteFideId "4100107"]
[BlackFideId "5078776"]
[WhiteElo "2621"]
[BlackElo "2484"]
[Result "0-1"]
[Round "08"]
[TimeControl "900+10"]
[Date "2021.12.27"]
[WhiteClock "0:00:43"]
[BlackClock "0:00:38"]

1. d4 {[%clk 0:15:00]}  Nf6 {[%clk 0:15:00]} 2. Nf3 {[%clk 0:15:00]}  g6 {[%clk 0:15:00]} 3. Nc3 {[%clk 0:15:00]}  Bg7 {[%clk 0:13:48]} 4. e4 {[%clk 0:15:53]}  d6 {[%clk 0:13:48]} 5. Be3 {[%clk 0:15:53]}  c6 {[%clk 0:13:48]} 6. Qd2 {[%clk 0:15:53]}  Nbd7 {[%clk 0:13:48]} 7. O-O-O {[%clk 0:15:53]}  b5 {[%clk 0:13:48]} 8. e5 {[%clk 0:15:53]}  b4 {[%clk 0:13:48]} 9. Ne2 {[%clk 0:14:52]}  Nd5 {[%clk 0:14:06]} 10. Bh6 {[%clk 0:14:52]}  Bxh6 {[%clk 0:14:06]} 11. Qxh6 {[%clk 0:14:52]}  Qa5 {[%clk 0:14:06]} 12. Kb1 {[%clk 0:12:18]}  dxe5 {[%clk 0:12:25]} 13. dxe5 {[%clk 0:11:27]}  Nc5 {[%clk 0:10:24]} 14. Nfd4 {[%clk 0:10:45]}  Bd7 {[%clk 0:10:24]} 15. Nc1 {[%clk 0:07:49]}  Ne4 {[%clk 0:05:38]} 16. Bc4 {[%clk 0:07:49]}  Nxf2 {[%clk 0:05:38]} 17. e6 {[%clk 0:07:29]}  fxe6 {[%clk 0:03:33]} 18. Nd3 {[%clk 0:06:22]}  Nxh1 {[%clk 0:03:36]} 19. Rxh1 {[%clk 0:06:22]}  O-O-O {[%clk 0:03:36]} 20. Nb3 {[%clk 0:06:22]}  Qb6 {[%clk 0:03:02]} 21. Re1 {[%clk 0:03:35]}  Kb8 {[%clk 0:03:02]} 22. Nbc5 {[%clk 0:03:35]}  Bc8 {[%clk 0:03:02]} 23. Qg7 {[%clk 0:03:35]}  a5 {[%clk 0:01:14]} 24. g3 {[%clk 0:02:51]}  Rdg8 {[%clk 0:01:14]} 25. Qe5+ {[%clk 0:02:51]}  Qc7 {[%clk 0:01:14]} 26. Qe2 {[%clk 0:02:51]}  Rd8 {[%clk 0:01:00]} 27. Ba6 {[%clk 0:01:28]}  Rd6 {[%clk 0:01:00]} 28. Bxc8 {[%clk 0:01:28]}  Qxc8 {[%clk 0:01:00]} 29. Ne5 {[%clk 0:01:28]}  Rf8 {[%clk 0:01:00]} 30. Nc4 {[%clk 0:01:28]}  Nc7 {[%clk 0:01:00]} 31. Nxa5 {[%clk 0:01:28]}  Rf5 {[%clk 0:01:00]} 32. Nab3 {[%clk 0:00:43]}  Rfd5 {[%clk 0:00:43]} 33. Rc1 {[%clk 0:00:43]}  Ka8 {[%clk 0:00:43]} 34. a3 {[%clk 0:00:43]}  Qb8 {[%clk 0:00:43]} 35. axb4 {[%clk 0:00:43]}  Qxb4 {[%clk 0:00:43]} 36. c3 {[%clk 0:00:43]}  Qb6 {[%clk 0:00:43]} 37. Qc4 {[%clk 0:00:43]}  Qb5 {[%clk 0:00:43]} 38. Qxb5 {[%clk 0:00:43]}  cxb5 {[%clk 0:00:43]} 39. Kc2 {[%clk 0:00:43]}  Rf5 {[%clk 0:00:38]} 40. Ra1+ {[%clk 0:00:43]}  Kb8 {[%clk 0:00:38]} 41. Nd4 {[%clk 0:00:43]}  Rxc5 {[%clk 0:00:38]} 0-1


[Site "http://www.Chess.com"]

[Event "FIDE World Rapid Chess Championship 2021"]
[White "Kantor, Gergely"]
[Black "Petrosian, Tigran L."]
[WhiteFideId "751499"]
[BlackFideId "13301616"]
[WhiteElo "2454"]
[BlackElo "2621"]
[Result "0-1"]
[Round "08"]
[TimeControl "900+10"]
[Date "2021.12.27"]
[WhiteClock "0:00:34"]
[BlackClock "0:00:31"]

1. d4 {[%clk 0:15:00]}  d6 {[%clk 0:15:00]} 2. e4 {[%clk 0:15:00]}  g6 {[%clk 0:15:00]} 3. c4 {[%clk 0:15:41]}  Bg7 {[%clk 0:15:54]} 4. Nc3 {[%clk 0:15:41]}  Nf6 {[%clk 0:15:54]} 5. Be2 {[%clk 0:15:41]}  O-O {[%clk 0:15:54]} 6. h4 {[%clk 0:15:41]}  c5 {[%clk 0:15:54]} 7. d5 {[%clk 0:15:26]}  h5 {[%clk 0:14:17]} 8. Bg5 {[%clk 0:15:26]}  Qa5 {[%clk 0:14:17]} 9. Qd2 {[%clk 0:15:26]}  a6 {[%clk 0:14:17]} 10. a4 {[%clk 0:15:26]}  b5 {[%clk 0:14:17]} 11. cxb5 {[%clk 0:14:32]}  axb5 {[%clk 0:11:08]} 12. Bxb5 {[%clk 0:14:16]}  Nbd7 {[%clk 0:08:08]} 13. Nge2 {[%clk 0:14:04]}  Ba6 {[%clk 0:05:30]} 14. Rb1 {[%clk 0:14:04]}  Bxb5 {[%clk 0:05:30]} 15. axb5 {[%clk 0:08:17]}  Qb4 {[%clk 0:03:12]} 16. f3 {[%clk 0:08:26]}  Rfb8 {[%clk 0:03:12]} 17. O-O {[%clk 0:08:26]}  Ne8 {[%clk 0:03:12]} 18. Rfd1 {[%clk 0:07:42]}  Ne5 {[%clk 0:01:44]} 19. Qc2 {[%clk 0:07:42]}  Kf8 {[%clk 0:01:44]} 20. Nc1 {[%clk 0:04:42]}  Qc4 {[%clk 0:01:38]} 21. Kh1 {[%clk 0:04:42]}  Nd7 {[%clk 0:01:31]} 22. Qe2 {[%clk 0:02:08]}  Qxe2 {[%clk 0:01:31]} 23. N1xe2 {[%clk 0:02:08]}  Nc7 {[%clk 0:01:31]} 24. b4 {[%clk 0:02:08]}  Bxc3 {[%clk 0:01:04]} 25. Nxc3 {[%clk 0:01:44]}  Nxb5 {[%clk 0:01:04]} 26. Nxb5 {[%clk 0:01:44]}  Rxb5 {[%clk 0:01:04]} 27. bxc5 {[%clk 0:01:44]}  Rxb1 {[%clk 0:01:04]} 28. Rxb1 {[%clk 0:01:44]}  Nxc5 {[%clk 0:01:04]} 29. Kg1 {[%clk 0:01:44]}  f6 {[%clk 0:01:04]} 30. Be3 {[%clk 0:01:44]}  Nd3 {[%clk 0:01:11]} 31. Rb3 {[%clk 0:01:44]}  Ne5 {[%clk 0:01:11]} 32. Rc3 {[%clk 0:01:44]}  Ra4 {[%clk 0:01:11]} 33. Kf2 {[%clk 0:01:44]}  Kf7 {[%clk 0:01:08]} 34. Rc7 {[%clk 0:01:19]}  Nc4 {[%clk 0:01:08]} 35. Bf4 {[%clk 0:01:19]}  Ra2+ {[%clk 0:01:08]} 36. Kg3 {[%clk 0:01:19]}  Rc2 {[%clk 0:01:08]} 37. Bxd6 {[%clk 0:01:19]}  Ne3 {[%clk 0:01:08]} 38. Rxe7+ {[%clk 0:01:19]}  Kg8 {[%clk 0:01:08]} 39. Re8+ {[%clk 0:01:19]}  Kf7 {[%clk 0:01:08]} 40. Rf8+ {[%clk 0:00:34]}  Kg7 {[%clk 0:00:31]} 41. Be7 {[%clk 0:00:34]}  g5 {[%clk 0:00:31]} 42. hxg5 {[%clk 0:00:34]}  fxg5 {[%clk 0:00:31]} 43. f4 {[%clk 0:00:34]}  Nf1+ {[%clk 0:00:31]} 44. Kh3 {[%clk 0:00:34]} 0-1


[Site "http://www.Chess.com"]

[Event "FIDE World Rapid Chess Championship 2021"]
[White "Santos Latasa, Jaime"]
[Black "Vastrukhin, Oleg"]
[WhiteFideId "2293307"]
[BlackFideId "4192770"]
[WhiteElo "2618"]
[BlackElo "2382"]
[Result "1-0"]
[Round "08"]
[TimeControl "900+10"]
[Date "2021.12.27"]
[WhiteClock "0:07:38"]
[BlackClock "0:01:27"]

1. Nf3 {[%clk 0:15:00]}  g6 {[%clk 0:15:00]} 2. e4 {[%clk 0:15:00]}  Bg7 {[%clk 0:15:00]} 3. d4 {[%clk 0:15:00]}  c6 {[%clk 0:15:00]} 4. Nc3 {[%clk 0:15:00]}  d5 {[%clk 0:16:20]} 5. h3 {[%clk 0:16:12]}  dxe4 {[%clk 0:16:20]} 6. Nxe4 {[%clk 0:16:12]}  Nf6 {[%clk 0:16:20]} 7. Nxf6+ {[%clk 0:16:12]}  exf6 {[%clk 0:16:20]} 8. Bd3 {[%clk 0:16:12]}  O-O {[%clk 0:16:20]} 9. O-O {[%clk 0:16:12]}  a5 {[%clk 0:16:20]} 10. Re1 {[%clk 0:16:12]}  Na6 {[%clk 0:16:20]} 11. c3 {[%clk 0:16:12]}  Nc7 {[%clk 0:15:30]} 12. Bd2 {[%clk 0:16:18]}  a4 {[%clk 0:15:30]} 13. c4 {[%clk 0:16:18]}  Ne6 {[%clk 0:15:30]} 14. Bc3 {[%clk 0:16:18]}  Qd6 {[%clk 0:15:30]} 15. Qd2 {[%clk 0:16:18]}  Rd8 {[%clk 0:15:30]} 16. Rad1 {[%clk 0:16:18]}  b6 {[%clk 0:15:30]} 17. Bf1 {[%clk 0:16:18]}  Bb7 {[%clk 0:13:35]} 18. Qc2 {[%clk 0:15:46]}  Qc7 {[%clk 0:13:35]} 19. b3 {[%clk 0:15:00]}  axb3 {[%clk 0:12:09]} 20. axb3 {[%clk 0:15:00]}  Rd7 {[%clk 0:12:09]} 21. Qb2 {[%clk 0:15:00]}  Rad8 {[%clk 0:12:09]} 22. d5 {[%clk 0:13:18]}  cxd5 {[%clk 0:11:15]} 23. Bxf6 {[%clk 0:13:18]}  Bxf6 {[%clk 0:10:09]} 24. Qxf6 {[%clk 0:11:57]}  Nc5 {[%clk 0:09:13]} 25. Qh4 {[%clk 0:10:12]}  Kg7 {[%clk 0:05:45]} 26. Ne5 {[%clk 0:11:02]}  Rd6 {[%clk 0:05:45]} 27. Nxf7 {[%clk 0:10:08]}  g5 {[%clk 0:03:55]} 28. Nxg5 {[%clk 0:09:57]}  Kg8 {[%clk 0:01:30]} 29. cxd5 {[%clk 0:09:57]}  h6 {[%clk 0:01:27]} 30. Ne4 {[%clk 0:07:38]}  Nxe4 {[%clk 0:01:27]} 31. Rxe4 {[%clk 0:07:38]}  Bxd5 {[%clk 0:01:27]} 32. Red4 {[%clk 0:07:38]} 1-0


[Site "http://www.Chess.com"]

[Event "FIDE World Rapid Chess Championship 2021"]
[White "Martirosyan, Haik M."]
[Black "Ponkratov, Pavel"]
[WhiteFideId "13306553"]
[BlackFideId "4157800"]
[WhiteElo "2377"]
[BlackElo "2614"]
[Result "0-1"]
[Round "08"]
[TimeControl "900+10"]
[Date "2021.12.27"]
[WhiteClock "0:00:31"]
[BlackClock "0:03:17"]

1. d4 {[%clk 0:15:00]}  d5 {[%clk 0:15:00]} 2. c4 {[%clk 0:15:00]}  dxc4 {[%clk 0:15:00]} 3. e4 {[%clk 0:15:00]}  b5 {[%clk 0:15:00]} 4. a4 {[%clk 0:15:24]}  c6 {[%clk 0:15:42]} 5. axb5 {[%clk 0:15:24]}  cxb5 {[%clk 0:15:42]} 6. Nc3 {[%clk 0:15:24]}  Qb6 {[%clk 0:15:42]} 7. b3 {[%clk 0:14:46]}  e6 {[%clk 0:15:27]} 8. bxc4 {[%clk 0:14:46]}  Bb4 {[%clk 0:15:27]} 9. Bd2 {[%clk 0:14:46]}  bxc4 {[%clk 0:15:27]} 10. Bxc4 {[%clk 0:14:46]}  Nf6 {[%clk 0:15:27]} 11. e5 {[%clk 0:14:46]}  Bxc3 {[%clk 0:15:27]} 12. Bxc3 {[%clk 0:11:26]}  Qc6 {[%clk 0:15:27]} 13. Qd3 {[%clk 0:11:35]}  Qxg2 {[%clk 0:07:11]} 14. exf6 {[%clk 0:11:35]}  Qxh1 {[%clk 0:07:11]} 15. O-O-O {[%clk 0:06:50]}  Qxh2 {[%clk 0:06:40]} 16. fxg7 {[%clk 0:06:50]}  Rg8 {[%clk 0:06:40]} 17. d5 {[%clk 0:06:28]}  e5 {[%clk 0:05:18]} 18. Re1 {[%clk 0:06:28]}  Nd7 {[%clk 0:05:21]} 19. Nf3 {[%clk 0:03:26]}  Qh6+ {[%clk 0:05:21]} 20. Kd1 {[%clk 0:03:26]}  f6 {[%clk 0:05:21]} 21. d6 {[%clk 0:02:41]}  Rxg7 {[%clk 0:04:18]} 22. Qd5 {[%clk 0:02:41]}  Rb8 {[%clk 0:04:18]} 23. Bd3 {[%clk 0:00:13]}  Qh5 {[%clk 0:04:01]} 24. Kc2 {[%clk 0:00:13]}  Qf7 {[%clk 0:04:01]} 25. Qxf7+ {[%clk 0:00:13]}  Kxf7 {[%clk 0:04:01]} 26. Bc4+ {[%clk 0:00:13]}  Kf8 {[%clk 0:04:01]} 27. Nd2 {[%clk 0:00:13]}  Bb7 {[%clk 0:04:01]} 28. Ra1 {[%clk 0:00:13]}  Nb6 {[%clk 0:04:01]} 29. Bd3 {[%clk 0:00:13]}  Nd5 {[%clk 0:04:01]} 30. Ba5 {[%clk 0:00:13]}  Rc8+ {[%clk 0:03:17]} 31. Kb2 {[%clk 0:00:31]}  Rc6 {[%clk 0:03:17]} 32. Ne4 {[%clk 0:00:31]}  Bc8 {[%clk 0:03:17]} 33. Bb5 {[%clk 0:00:31]}  Rb7 {[%clk 0:03:17]} 0-1


[Site "http://www.Chess.com"]

[Event "FIDE World Rapid Chess Championship 2021"]
[White "Timofeev, Artyom"]
[Black "Muradli, Mahammad"]
[WhiteFideId "4140419"]
[BlackFideId "13409301"]
[WhiteElo "2591"]
[BlackElo "2285"]
[Result "1-0"]
[Round "08"]
[TimeControl "900+10"]
[Date "2021.12.27"]
[WhiteClock "0:00:18"]
[BlackClock "0:00:12"]

1. d4 {[%clk 0:15:00]}  d6 {[%clk 0:15:00]} 2. Nf3 {[%clk 0:14:50]}  g6 {[%clk 0:14:27]} 3. e4 {[%clk 0:14:50]}  Bg7 {[%clk 0:14:27]} 4. c3 {[%clk 0:14:50]}  Nc6 {[%clk 0:14:27]} 5. Be3 {[%clk 0:14:50]}  Nf6 {[%clk 0:14:27]} 6. Nbd2 {[%clk 0:14:50]}  O-O {[%clk 0:14:27]} 7. h3 {[%clk 0:14:50]}  e5 {[%clk 0:14:27]} 8. dxe5 {[%clk 0:14:50]}  Nxe5 {[%clk 0:14:27]} 9. Nxe5 {[%clk 0:14:50]}  dxe5 {[%clk 0:14:27]} 10. Be2 {[%clk 0:14:50]}  b6 {[%clk 0:14:27]} 11. O-O {[%clk 0:14:50]}  Bb7 {[%clk 0:14:27]} 12. Qc2 {[%clk 0:14:50]}  Qe7 {[%clk 0:14:27]} 13. a4 {[%clk 0:14:50]}  a5 {[%clk 0:14:27]} 14. Rfd1 {[%clk 0:13:04]}  Rfd8 {[%clk 0:15:04]} 15. Bf3 {[%clk 0:13:04]}  Ba6 {[%clk 0:15:04]} 16. Nf1 {[%clk 0:10:48]}  Nd7 {[%clk 0:14:49]} 17. Be2 {[%clk 0:10:48]}  Bb7 {[%clk 0:14:49]} 18. Bc4 {[%clk 0:10:48]}  Nf6 {[%clk 0:14:19]} 19. Ng3 {[%clk 0:09:12]}  Qf8 {[%clk 0:13:08]} 20. f3 {[%clk 0:07:45]}  h5 {[%clk 0:13:08]} 21. Bf2 {[%clk 0:07:45]}  Qe7 {[%clk 0:11:15]} 22. Nf1 {[%clk 0:07:18]}  h4 {[%clk 0:11:15]} 23. Rxd8+ {[%clk 0:06:30]}  Rxd8 {[%clk 0:09:32]} 24. Rd1 {[%clk 0:06:30]}  Rxd1 {[%clk 0:09:39]} 25. Qxd1 {[%clk 0:03:41]}  Nh5 {[%clk 0:09:39]} 26. Qe1 {[%clk 0:03:41]}  Bf6 {[%clk 0:09:39]} 27. Ne3 {[%clk 0:04:57]}  Bg5 {[%clk 0:06:18]} 28. b4 {[%clk 0:04:57]}  Ng3 {[%clk 0:06:18]} 29. Nf1 {[%clk 0:03:21]}  Nh5 {[%clk 0:05:39]} 30. bxa5 {[%clk 0:03:21]}  bxa5 {[%clk 0:05:39]} 31. Qb1 {[%clk 0:03:21]}  Bc6 {[%clk 0:05:39]} 32. Bb5 {[%clk 0:03:21]}  Bxb5 {[%clk 0:04:23]} 33. Qxb5 {[%clk 0:02:43]}  Bc1 {[%clk 0:04:23]} 34. Ne3 {[%clk 0:02:43]}  Bxe3 {[%clk 0:01:39]} 35. Bxe3 {[%clk 0:03:20]}  Ng3 {[%clk 0:01:39]} 36. Kh2 {[%clk 0:03:20]}  Qd8 {[%clk 0:01:39]} 37. Bf2 {[%clk 0:00:32]}  Qg5 {[%clk 0:01:39]} 38. Bd4 {[%clk 0:00:32]}  Nf1+ {[%clk 0:01:39]} 39. Kg1 {[%clk 0:00:18]}  Qc1 {[%clk 0:00:12]} 40. Qxf1 {[%clk 0:00:18]} 1-0


[Site "http://www.Chess.com"]

[Event "FIDE World Rapid Chess Championship 2021"]
[White "Bluebaum, Matthias"]
[Black "Samunenkov, Ihor"]
[WhiteFideId "24651516"]
[BlackFideId "14187086"]
[WhiteElo "2575"]
[BlackElo "2259"]
[Result "1-0"]
[Round "08"]
[TimeControl "900+10"]
[Date "2021.12.27"]
[WhiteClock "0:03:44"]
[BlackClock "0:00:37"]

1. d4 {[%clk 0:15:00]}  d5 {[%clk 0:15:00]} 2. c4 {[%clk 0:15:00]}  e6 {[%clk 0:15:00]} 3. Nc3 {[%clk 0:15:00]}  a6 {[%clk 0:15:00]} 4. cxd5 {[%clk 0:15:00]}  exd5 {[%clk 0:15:21]} 5. Nf3 {[%clk 0:16:07]}  Nf6 {[%clk 0:15:21]} 6. Bf4 {[%clk 0:16:07]}  Bd6 {[%clk 0:15:21]} 7. Bg3 {[%clk 0:16:07]}  O-O {[%clk 0:15:21]} 8. e3 {[%clk 0:16:07]}  Bf5 {[%clk 0:15:21]} 9. Qb3 {[%clk 0:16:07]}  Bxg3 {[%clk 0:15:21]} 10. hxg3 {[%clk 0:16:07]}  Qd6 {[%clk 0:15:21]} 11. Nh4 {[%clk 0:16:07]}  Bg4 {[%clk 0:13:17]} 12. Bd3 {[%clk 0:15:15]}  Nc6 {[%clk 0:13:17]} 13. Nf3 {[%clk 0:15:22]}  Nb4 {[%clk 0:09:20]} 14. Bb1 {[%clk 0:14:44]}  c5 {[%clk 0:09:20]} 15. a3 {[%clk 0:14:01]}  Nc6 {[%clk 0:04:28]} 16. Nxd5 {[%clk 0:12:13]}  g6 {[%clk 0:04:28]} 17. Nxf6+ {[%clk 0:10:45]}  Qxf6 {[%clk 0:04:37]} 18. Be4 {[%clk 0:08:43]}  cxd4 {[%clk 0:04:46]} 19. Qxb7 {[%clk 0:08:43]}  Rfc8 {[%clk 0:04:00]} 20. Bxc6 {[%clk 0:05:09]}  Rab8 {[%clk 0:04:00]} 21. Qa7 {[%clk 0:05:09]}  dxe3 {[%clk 0:02:30]} 22. O-O {[%clk 0:04:30]}  Qxc6 {[%clk 0:02:30]} 23. Ne5 {[%clk 0:04:30]}  Qe6 {[%clk 0:00:37]} 24. Qxe3 {[%clk 0:03:44]}  Rxb2 {[%clk 0:00:37]} 25. Qd4 {[%clk 0:03:44]}  Rbc2 {[%clk 0:00:37]} 26. Nxg4 {[%clk 0:03:44]}  R2c4 {[%clk 0:00:37]} 27. Nh6+ {[%clk 0:03:44]}  Kf8 {[%clk 0:00:37]} 28. Qh8+ {[%clk 0:03:44]}  Ke7 {[%clk 0:00:37]} 29. Qg7 {[%clk 0:03:44]} 1-0


[Site "http://www.Chess.com"]

[Event "FIDE World Rapid Chess Championship 2021"]
[White "Dudin, Gleb"]
[Black "Socko, Bartosz"]
[WhiteFideId "34184934"]
[BlackFideId "1107038"]
[WhiteElo "2247"]
[BlackElo "2562"]
[Result "1/2-1/2"]
[Round "08"]
[TimeControl "900+10"]
[Date "2021.12.27"]
[WhiteClock "0:00:27"]
[BlackClock "0:01:02"]

1. d4 {[%clk 0:15:00]}  e6 {[%clk 0:15:00]} 2. c4 {[%clk 0:14:42]}  b6 {[%clk 0:15:27]} 3. a3 {[%clk 0:14:42]}  Bb7 {[%clk 0:15:27]} 4. Nc3 {[%clk 0:14:42]}  Nf6 {[%clk 0:15:27]} 5. d5 {[%clk 0:14:03]}  exd5 {[%clk 0:15:05]} 6. cxd5 {[%clk 0:14:03]}  c5 {[%clk 0:15:05]} 7. dxc6 {[%clk 0:14:03]}  dxc6 {[%clk 0:15:05]} 8. Qxd8+ {[%clk 0:14:03]}  Kxd8 {[%clk 0:15:05]} 9. Bf4 {[%clk 0:11:36]}  Nbd7 {[%clk 0:15:11]} 10. O-O-O {[%clk 0:11:36]}  Bc5 {[%clk 0:15:11]} 11. e3 {[%clk 0:10:55]}  Nh5 {[%clk 0:14:11]} 12. Bg5+ {[%clk 0:10:55]}  Be7 {[%clk 0:14:11]} 13. Nf3 {[%clk 0:08:24]}  f6 {[%clk 0:13:16]} 14. Bh4 {[%clk 0:07:30]}  g5 {[%clk 0:13:16]} 15. Bg3 {[%clk 0:07:30]}  Nxg3 {[%clk 0:13:16]} 16. hxg3 {[%clk 0:07:30]}  Kc7 {[%clk 0:13:16]} 17. Bd3 {[%clk 0:05:56]}  h6 {[%clk 0:11:25]} 18. Nd4 {[%clk 0:05:56]}  Nf8 {[%clk 0:11:10]} 19. Nf5 {[%clk 0:05:10]}  Re8 {[%clk 0:11:10]} 20. Bc4 {[%clk 0:05:10]}  Bc5 {[%clk 0:08:47]} 21. b4 {[%clk 0:04:00]}  Re5 {[%clk 0:05:24]} 22. Nxh6 {[%clk 0:04:00]}  b5 {[%clk 0:04:42]} 23. Bb3 {[%clk 0:02:22]}  Bb6 {[%clk 0:04:42]} 24. Ng4 {[%clk 0:02:22]}  Rxh1 {[%clk 0:04:42]} 25. Rxh1 {[%clk 0:02:22]}  Re7 {[%clk 0:04:42]} 26. Nxf6 {[%clk 0:02:22]}  Nd7 {[%clk 0:04:42]} 27. Nxd7 {[%clk 0:02:22]}  Rxd7 {[%clk 0:04:42]} 28. Rh5 {[%clk 0:02:22]}  Rg7 {[%clk 0:04:42]} 29. Ne4 {[%clk 0:02:22]}  g4 {[%clk 0:04:44]} 30. Nc5 {[%clk 0:01:41]}  Bc8 {[%clk 0:04:44]} 31. Kd2 {[%clk 0:01:41]}  a5 {[%clk 0:04:44]} 32. Kc3 {[%clk 0:01:41]}  a4 {[%clk 0:04:44]} 33. Bc2 {[%clk 0:01:41]}  Kb8 {[%clk 0:03:17]} 34. Be4 {[%clk 0:01:11]}  Rf7 {[%clk 0:03:17]} 35. f3 {[%clk 0:01:11]}  Rf6 {[%clk 0:03:17]} 36. Rg5 {[%clk 0:01:11]}  Bd8 {[%clk 0:03:17]} 37. Rg6 {[%clk 0:00:24]}  Rxg6 {[%clk 0:02:45]} 38. Bxg6 {[%clk 0:00:24]}  Bf6+ {[%clk 0:02:45]} 39. Kc2 {[%clk 0:00:24]}  Kc7 {[%clk 0:02:45]} 40. f4 {[%clk 0:00:24]}  Bg7 {[%clk 0:02:45]} 41. Bd3 {[%clk 0:00:24]}  Kd6 {[%clk 0:02:45]} 42. Ne4+ {[%clk 0:00:24]}  Ke7 {[%clk 0:02:45]} 43. Nf2 {[%clk 0:00:24]}  Be6 {[%clk 0:02:45]} 44. Ne4 {[%clk 0:00:24]}  Bd5 {[%clk 0:02:45]} 45. Nc5 {[%clk 0:00:23]}  Bxg2 {[%clk 0:02:15]} 46. Be4 {[%clk 0:00:23]}  Bf3 {[%clk 0:02:15]} 47. Bxf3 {[%clk 0:00:23]}  gxf3 {[%clk 0:02:15]} 48. Nd3 {[%clk 0:00:23]}  Kd6 {[%clk 0:02:15]} 49. e4 {[%clk 0:00:23]}  Bd4 {[%clk 0:02:15]} 50. Kd2 {[%clk 0:00:23]}  c5 {[%clk 0:02:15]} 51. e5+ {[%clk 0:00:23]}  Kd5 {[%clk 0:02:15]} 52. e6 {[%clk 0:00:23]}  Kxe6 {[%clk 0:02:15]} 53. bxc5 {[%clk 0:00:23]}  Kd5 {[%clk 0:02:15]} 54. Nb4+ {[%clk 0:00:23]}  Kxc5 {[%clk 0:02:15]} 55. Nc2 {[%clk 0:00:23]}  Kd5 {[%clk 0:02:18]} 56. Kd3 {[%clk 0:00:29]}  Bc5 {[%clk 0:02:18]} 57. g4 {[%clk 0:00:29]}  f2 {[%clk 0:02:18]} 58. Ke2 {[%clk 0:00:29]}  Ke4 {[%clk 0:02:18]} 59. g5 {[%clk 0:00:29]}  Kf5 {[%clk 0:02:18]} 60. Kf1 {[%clk 0:00:29]}  Kxf4 {[%clk 0:01:02]} 61. g6 {[%clk 0:00:27]}  Bf8 {[%clk 0:01:02]} 62. Nd4 {[%clk 0:00:27]}  Ke5 {[%clk 0:01:02]} 63. Nxb5 {[%clk 0:00:27]}  Kf6 {[%clk 0:01:02]} 64. Kxf2 {[%clk 0:00:27]}  Kxg6 {[%clk 0:01:02]} 65. Nc3 {[%clk 0:00:27]}  Bxa3 {[%clk 0:01:02]} 66. Nxa4 {[%clk 0:00:27]} 1/2-1/2


[Site "http://www.Chess.com"]

[Event "FIDE World Rapid Chess Championship 2021"]
[White "Corrales Jimenez, Fidel"]
[Black "Sargsyan, Shant"]
[WhiteFideId "3506690"]
[BlackFideId "13306766"]
[WhiteElo "2561"]
[BlackElo "2344"]
[Result "0-1"]
[Round "08"]
[TimeControl "900+10"]
[Date "2021.12.27"]
[WhiteClock "0:02:53"]
[BlackClock "0:00:00"]

1. e4 {[%clk 0:15:00]}  e5 {[%clk 0:15:00]} 2. Nf3 {[%clk 0:15:00]}  Nc6 {[%clk 0:15:51]} 3. Bb5 {[%clk 0:15:39]}  a6 {[%clk 0:15:51]} 4. Ba4 {[%clk 0:15:39]}  Nf6 {[%clk 0:15:51]} 5. O-O {[%clk 0:15:39]}  Be7 {[%clk 0:15:51]} 6. Re1 {[%clk 0:15:39]}  b5 {[%clk 0:15:51]} 7. Bb3 {[%clk 0:15:39]}  O-O {[%clk 0:15:51]} 8. h3 {[%clk 0:15:39]}  Bb7 {[%clk 0:15:20]} 9. d3 {[%clk 0:15:31]}  d5 {[%clk 0:15:20]} 10. exd5 {[%clk 0:15:31]}  Nxd5 {[%clk 0:15:20]} 11. Nc3 {[%clk 0:15:31]}  Nxc3 {[%clk 0:15:20]} 12. bxc3 {[%clk 0:15:31]}  Bd6 {[%clk 0:15:20]} 13. Bg5 {[%clk 0:15:40]}  Qd7 {[%clk 0:13:22]} 14. Bh4 {[%clk 0:15:40]}  Rae8 {[%clk 0:13:22]} 15. Bg3 {[%clk 0:15:40]}  Qf5 {[%clk 0:11:59]} 16. Bd5 {[%clk 0:13:36]}  Nd8 {[%clk 0:11:59]} 17. Bxb7 {[%clk 0:13:01]}  Nxb7 {[%clk 0:10:34]} 18. a4 {[%clk 0:13:01]}  f6 {[%clk 0:10:34]} 19. axb5 {[%clk 0:13:01]}  axb5 {[%clk 0:10:34]} 20. Qb1 {[%clk 0:13:01]}  Qd7 {[%clk 0:10:34]} 21. c4 {[%clk 0:13:01]}  b4 {[%clk 0:09:23]} 22. c3 {[%clk 0:12:00]}  c5 {[%clk 0:09:23]} 23. d4 {[%clk 0:12:00]}  exd4 {[%clk 0:09:23]} 24. Rxe8 {[%clk 0:12:00]}  Rxe8 {[%clk 0:09:23]} 25. Bxd6 {[%clk 0:12:00]}  Qxd6 {[%clk 0:07:58]} 26. cxd4 {[%clk 0:11:46]}  cxd4 {[%clk 0:07:58]} 27. Ra4 {[%clk 0:10:08]}  Nc5 {[%clk 0:05:29]} 28. Rxb4 {[%clk 0:08:45]}  d3 {[%clk 0:05:29]} 29. Rb6 {[%clk 0:08:45]}  Qf4 {[%clk 0:03:03]} 30. Qa2 {[%clk 0:08:57]}  Qc1+ {[%clk 0:00:00]} 31. Kh2 {[%clk 0:08:57]}  Qf4+ {[%clk 0:00:00]} 32. Kg1 {[%clk 0:08:57]}  Qe4 {[%clk 0:00:50]} 33. Rb5 {[%clk 0:03:04]}  Ra8 {[%clk 0:00:50]} 34. Qb1 {[%clk 0:03:04]}  Qxc4 {[%clk 0:00:50]} 35. Rb8+ {[%clk 0:03:04]}  Rxb8 {[%clk 0:00:50]} 36. Qxb8+ {[%clk 0:02:21]}  Kf7 {[%clk 0:00:09]} 37. Qc7+ {[%clk 0:02:21]}  Kg6 {[%clk 0:00:09]} 38. g4 {[%clk 0:02:21]}  h5 {[%clk 0:00:09]} 39. Nh4+ {[%clk 0:02:21]}  Kg5 {[%clk 0:00:09]} 40. Qg3 {[%clk 0:02:53]}  hxg4 {[%clk 0:00:00]} 41. Nf3+ {[%clk 0:02:53]}  Kf5 {[%clk 0:00:00]} 42. Nh4+ {[%clk 0:02:53]}  Ke6 {[%clk 0:00:00]} 43. hxg4 {[%clk 0:02:53]}  d2 {[%clk 0:00:00]} 44. Qe3+ {[%clk 0:02:53]}  Ne4 {[%clk 0:00:00]} 45. Qb6+ {[%clk 0:02:53]}  Kd5 {[%clk 0:00:00]} 46. Kg2 {[%clk 0:02:53]}  d1=Q {[%clk 0:00:00]} 47. Nf3 {[%clk 0:02:53]}  Qcf1+ {[%clk 0:00:00]} 0-1


[Site "http://www.Chess.com"]